bitfinex-derivatives/quotes_BTCF0:USTF0_20241013
["timestamp","ask_amount","ask_price","bid_price","bid_amount"]
[1728779412334,0.28234502,63282.0,63281.0,0.101]
[1728779412638,0.28234502,63282.0,63281.0,0.02191529]
[1728779413028,0.28234502,63282.0,63281.0,0.02291529]
[1728779413229,0.48792111,63282.0,63281.0,0.02291529]
[1728779413536,0.55544099,63282.0,63281.0,0.02291529]
[1728779413730,0.3498649,63282.0,63281.0,0.02191529]
[1728779413929,0.3508649,63282.0,63281.0,0.02291529]
[1728779414333,0.55611547,63282.0,63281.0,0.02291529]
[1728779414837,0.3508649,63282.0,63281.0,0.02291529]
[1728779418831,0.001,63282.0,63281.0,0.02291529]
[1728779420341,0.3618,63282.0,63281.0,0.02291529]
[1728779425844,0.77084429,63282.0,63281.0,0.00382276]
[1728779426042,0.87650299,63282.0,63281.0,0.00382276]
[1728779426338,0.70281877,63282.0,63281.0,0.00063979]
[1728779428647,0.70281877,63282.0,63281.0,0.10063979]
[1728779430456,0.70281877,63282.0,63281.0,0.17966379]
[1728779430654,0.34201877,63282.0,63281.0,0.17966379]
[1728779430945,0.23636007,63282.0,63281.0,0.17966379]
[1728779431644,0.23636007,63282.0,63281.0,0.079024]
[1728779431853,0.23636007,63282.0,63281.0,0.179024]
[1728779432041,0.23636007,63282.0,63281.0,0.079024]
[1728779432042,0.24242026,63282.0,63281.0,0.079024]
[1728779432244,0.24242026,63282.0,63276.0,0.07903]
[1728779432245,0.78167362,63282.0,63276.0,0.07903]
[1728779432563,0.17385783,63280.0,63276.0,0.07903]
[1728779432847,0.34101877,63279.0,63276.0,0.07903]
[1728779433052,0.34101877,63278.0,63276.0,0.07903]
[1728779433259,0.34101877,63277.0,63276.0,0.07903]
[1728779433544,0.23536007,63277.0,63276.0,0.08003]
[1728779433753,0.144125,63281.0,63276.0,0.08003]
[1728779433945,0.144125,63281.0,63280.0,0.0004]
[1728779435549,0.144125,63281.0,63280.0,0.04777325]
[1728779436051,0.144125,63281.0,63280.0,0.04877325]
[1728779436549,0.146125,63281.0,63280.0,0.04977325]
[1728779437350,0.16925203,63281.0,63280.0,0.04977325]
[1728779437748,0.53005203,63281.0,63280.0,0.04977325]
[1728779439656,0.16925203,63281.0,63280.0,0.04977325]
[1728779440058,0.53005203,63281.0,63280.0,0.04977325]
[1728779441947,0.53005203,63281.0,63280.0,0.0024]
[1728779442861,0.16925203,63281.0,63280.0,0.0024]
[1728779443058,0.53005203,63281.0,63280.0,0.0024]
[1728779443669,0.16925203,63281.0,63280.0,0.0024]
[1728779443962,0.53005203,63281.0,63280.0,0.0024]
[1728779444160,0.16925203,63281.0,63280.0,0.0024]
[1728779444363,0.53005203,63281.0,63280.0,0.0024]
[1728779444751,0.16925203,63281.0,63280.0,0.0024]
[1728779444953,0.53005203,63281.0,63280.0,0.0024]
[1728779445856,0.16925203,63281.0,63280.0,0.0024]
[1728779446360,0.53005203,63281.0,63280.0,0.0024]
[1728779449058,0.86728568,63281.0,63277.0,0.1]
[1728779449268,0.33723365,63280.0,63277.0,0.1]
[1728779449459,0.33723365,63279.0,63277.0,0.1]
[1728779449758,0.3372043,63278.0,63277.0,0.1]
[1728779449951,0.3372043,63278.0,63277.0,0.179029]
[1728779449952,0.23271836,63278.0,63277.0,0.179029]
[1728779450261,0.23271836,63278.0,63277.0,0.180029]
[1728779451162,0.23471836,63278.0,63277.0,0.180029]
[1728779451358,0.23471836,63278.0,63277.0,0.181029]
[1728779453565,0.23471836,63278.0,63277.0,0.081029]
[1728779453862,0.23471836,63278.0,63277.0,0.181029]
[1728779456067,0.002,63278.0,63277.0,0.24419245]
[1728779456767,0.002,63278.0,63277.0,0.181029]
[1728779456965,0.002,63278.0,63277.0,0.24421322]
[1728779457466,0.002,63278.0,63277.0,0.181029]
[1728779457860,0.002,63278.0,63277.0,0.24421157]
[1728779458063,0.002,63278.0,63277.0,0.181029]
[1728779461475,0.112812,63291.0,63277.0,0.36004032]
[1728779461668,0.112812,63291.0,63290.0,0.1004]
[1728779462066,0.0338,63291.0,63290.0,0.1004]
[1728779462668,0.0368,63291.0,63290.0,0.1004]
[1728779463264,0.0368,63291.0,63290.0,0.1014]
[1728779463465,0.0338,63291.0,63290.0,0.1024]
[1728779463671,0.0368,63291.0,63290.0,0.1024]
[1728779464972,0.0368,63291.0,63290.0,0.1014]
[1728779465163,0.0368,63291.0,63290.0,0.1024]
[1728779465367,0.003,63291.0,63290.0,0.181413]
[1728779466764,0.003,63291.0,63290.0,0.22879261]
[1728779467367,0.003,63291.0,63290.0,0.25662572]
[1728779467565,0.003,63291.0,63290.0,0.20924611]
[1728779467774,0.003,63291.0,63290.0,0.181413]
[1728779468266,0.001,63291.0,63290.0,0.181413]
[1728779468672,0.001,63291.0,63290.0,0.180413]
[1728779468975,0.001,63291.0,63290.0,0.22879261]
[1728779469470,0.3608,63292.0,63291.0,0.079012]
[1728779469974,0.3608,63292.0,63291.0,0.079412]
[1728779470267,0.439804,63297.0,63291.0,0.12679161]
[1728779470465,0.439804,63297.0,63296.0,0.0004]
[1728779470863,0.76868242,63297.0,63287.0,0.00207517]
[1728779471064,0.32887842,63296.0,63293.0,0.1]
[1728779471260,0.32887842,63295.0,63293.0,0.1]
[1728779471472,0.32887842,63294.0,63293.0,0.1]
[1728779471876,0.32887842,63294.0,63293.0,0.179009]
[1728779472067,0.2153241,63294.0,63291.0,0.001]
[1728779472381,0.31722132,63293.0,63291.0,0.001]
[1728779472575,0.3127403,63292.0,63291.0,0.079012]
[1728779472768,0.21584319,63292.0,63291.0,0.08395315]
[1728779473364,0.21584319,63292.0,63291.0,0.079012]
[1728779473673,0.21584319,63292.0,63291.0,0.179012]
[1728779473867,0.21584319,63292.0,63291.0,0.180012]
[1728779474366,0.21584319,63292.0,63291.0,1.354012]
[1728779474964,0.21884319,63292.0,63291.0,1.354012]
[1728779475566,0.21884319,63292.0,63291.0,1.254012]
[1728779476762,0.21507858,63292.0,63291.0,1.254012]
[1728779478470,0.21507858,63292.0,63291.0,1.253012]
[1728779478667,0.35575484,63292.0,63291.0,1.253012]
[1728779478971,0.002,63292.0,63291.0,1.253012]
[1728779479475,0.3608,63300.0,63298.0,0.079003]
[1728779479679,0.3608,63300.0,63299.0,0.1004]
[1728779480268,0.3608,63300.0,63299.0,0.179402]
[1728779481771,0.3628,63300.0,63299.0,0.179402]
[1728779482272,0.3628,63300.0,63299.0,0.180402]
[1728779482476,0.3628,63300.0,63299.0,0.181402]
[1728779485577,0.3628,63300.0,63299.0,0.20920174]
[1728779485877,0.66999347,63300.0,63299.0,0.13014408]
[1728779486079,0.66999347,63300.0,63289.0,0.45214]
[1728779486272,0.15745347,63293.0,63291.0,0.01284686]
[1728779486473,0.15745347,63293.0,63291.0,0.079012]
[1728779486474,0.21201495,63292.0,63291.0,0.079012]
[1728779486681,0.21201495,63292.0,63291.0,0.69185886]
[1728779486983,0.21201495,63292.0,63291.0,1.16585886]
[1728779487192,0.15747692,63298.0,63291.0,0.61284686]
[1728779487372,0.15747692,63298.0,63289.0,0.45214]
[1728779487373,0.002,63300.0,63297.0,0.5612]
[1728779487569,0.002,63300.0,63299.0,0.079402]
[1728779487771,0.002,63300.0,63299.0,0.09224769]
[1728779487967,0.0338,63302.0,63301.0,0.078999]
[1728779488178,0.0338,63302.0,63301.0,0.1843397]
[1728779489284,0.0338,63302.0,63301.0,0.1853397]
[1728779489578,0.0378,63302.0,63301.0,0.1863397]
[1728779491578,0.21107301,63302.0,63301.0,0.1863397]
[1728779491979,0.17727301,63302.0,63301.0,0.1863397]
[1728779492176,0.07512723,63302.0,63301.0,0.1863397]
[1728779492582,0.24840024,63302.0,63301.0,0.1863397]
[1728779492785,0.24840024,63302.0,63301.0,0.21430897]
[1728779494092,0.17727301,63302.0,63301.0,0.21430897]
[1728779494283,0.004,63302.0,63301.0,0.21430897]
[1728779495683,0.004,63302.0,63301.0,0.85769852]
[1728779495982,0.004,63302.0,63301.0,0.68328827]
[1728779496181,0.004,63302.0,63301.0,0.7737673]
[1728779496877,0.004,63302.0,63301.0,0.2998473]
[1728779498381,0.033,63306.0,63301.0,0.2988473]
[1728779498584,0.0004,63314.0,63307.0,0.078992]
[1728779498886,0.0335,63312.0,63308.0,0.36938389]
[1728779499185,0.0335,63312.0,63308.0,0.36937328]
[1728779499383,0.0335,63312.0,63308.0,0.38559096]
[1728779499576,0.0335,63312.0,63308.0,0.38502843]
[1728779499775,0.0335,63312.0,63308.0,0.29074712]
[1728779500488,0.0335,63312.0,63308.0,0.38501127]
[1728779501081,0.29401228,63309.0,63308.0,0.201]
[1728779501386,0.23097043,63309.0,63308.0,0.202]
[1728779501578,0.19252555,63309.0,63308.0,0.28099]
[1728779501777,0.18952555,63309.0,63308.0,0.27899]
[1728779501982,0.19152555,63309.0,63308.0,0.27899]
[1728779502780,0.19152555,63309.0,63308.0,0.32089704]
[1728779503583,0.19152555,63309.0,63308.0,0.22089704]
[1728779504987,0.18505608,63309.0,63308.0,0.22089704]
[1728779505686,0.18505608,63309.0,63308.0,0.12089704]
[1728779505886,0.18505608,63309.0,63308.0,0.22089704]
[1728779506782,0.18505608,63309.0,63308.0,0.12089704]
[1728779506984,0.18505608,63309.0,63308.0,0.22089704]
[1728779508990,0.0024,63309.0,63308.0,0.28373963]
[1728779509788,0.0024,63309.0,63308.0,0.22089704]
[1728779510790,0.0024,63309.0,63308.0,0.20805406]
[1728779511385,0.0024,63309.0,63308.0,0.65053406]
[1728779511892,0.0024,63309.0,63308.0,0.55053406]
[1728779512196,0.0024,63309.0,63308.0,0.65053406]
[1728779513493,0.0024,63309.0,63308.0,0.71337665]
[1728779514097,0.0024,63309.0,63308.0,0.65053406]
[1728779514394,0.0024,63309.0,63308.0,0.71337665]
[1728779515486,0.0024,63309.0,63308.0,0.65053406]
[1728779517897,0.0024,63309.0,63308.0,0.66337708]
[1728779520195,0.0024,63309.0,63308.0,0.76337708]
[1728779522503,0.0024,63309.0,63308.0,0.84193032]
[1728779523005,0.0024,63309.0,63308.0,0.76337708]
[1728779523697,0.0024,63309.0,63308.0,0.85485134]
[1728779524091,0.0024,63309.0,63308.0,0.38402843]
[1728779524092,0.26826759,63309.0,63308.0,0.38402843]
[1728779524802,0.47327201,63309.0,63308.0,0.29192762]
[1728779525008,0.47327201,63309.0,63308.0,0.18072762]
[1728779525204,0.26826759,63309.0,63308.0,0.13897541]
[1728779527001,0.2556882,63309.0,63308.0,0.13897541]
[1728779529807,0.25561476,63309.0,63308.0,0.13897541]
[1728779530108,0.25561476,63309.0,63308.0,0.15181933]
[1728779531002,0.0024,63309.0,63308.0,0.35900815]
[1728779533005,0.0024,63309.0,63308.0,0.24632922]
[1728779533205,0.0024,63309.0,63308.0,0.35897951]
[1728779533517,0.0024,63309.0,63308.0,0.71977951]
[1728779533808,0.0024,63309.0,63308.0,0.35897951]
[1728779535210,0.0024,63309.0,63308.0,0.2989941]
[1728779535412,0.0024,63309.0,63308.0,0.3989941]
[1728779535821,0.0024,63309.0,63308.0,0.28634381]
[1728779536206,0.0024,63309.0,63308.0,0.39902393]
[1728779536607,0.0024,63309.0,63308.0,0.39904348]
[1728779537118,0.0024,63309.0,63308.0,0.29904348]
[1728779537414,0.0024,63309.0,63308.0,0.39904348]
[1728779538803,0.0024,63309.0,63308.0,0.28636548]
[1728779539002,0.0024,63309.0,63308.0,0.19183392]
[1728779539405,0.0024,63309.0,63308.0,0.23905643]
[1728779539722,0.0024,63309.0,63308.0,0.2390566]
[1728779541015,0.0024,63309.0,63308.0,0.2489366]
[1728779541510,0.0024,63309.0,63308.0,0.20171391]
[1728779541714,0.0024,63309.0,63308.0,0.20378337]
[1728779542213,0.0024,63309.0,63308.0,0.25100606]
[1728779542515,0.0024,63309.0,63308.0,0.07899]
[1728779543613,0.0024,63309.0,63305.0,0.0004]
[1728779543614,0.078993,63306.0,63305.0,0.0004]
[1728779543825,0.078994,63305.0,63299.0,0.00246946]
[1728779544011,0.3608,63301.0,63299.0,0.0004]
[1728779544209,0.0341,63300.0,63299.0,0.0004]
[1728779544915,0.0341,63300.0,63299.0,0.0034]
[1728779545417,0.0341,63300.0,63299.0,0.0004]
[1728779545615,0.0341,63300.0,63299.0,0.0034]
[1728779546015,0.0341,63300.0,63299.0,0.09535019]
[1728779547012,0.0677,63300.0,63299.0,0.09535019]
[1728779547208,0.1054,63300.0,63299.0,0.09535019]
[1728779547403,0.1054,63300.0,63299.0,0.17401195]
[1728779548819,0.1054,63300.0,63299.0,0.07906176]
[1728779550018,0.1054,63300.0,63299.0,0.17390901]
[1728779550326,0.1054,63300.0,63299.0,0.07906176]
[1728779550526,0.1054,63300.0,63299.0,0.0004]
[1728779552015,0.1054,63300.0,63299.0,0.07906176]
[1728779552410,0.1054,63300.0,63299.0,0.0004]
[1728779553212,0.1054,63300.0,63299.0,0.27386058]
[1728779553410,0.1054,63300.0,63299.0,0.27382999]
[1728779554321,0.1054,63300.0,63299.0,0.35283199]
[1728779554821,0.1054,63300.0,63299.0,0.35483199]
[1728779556316,0.1054,63300.0,63299.0,0.181402]
[1728779557519,0.0004,63302.0,63301.0,0.078999]
[1728779557715,0.0004,63302.0,63301.0,0.079399]
[1728779559117,0.0004,63302.0,63301.0,0.25255225]
[1728779559421,0.0004,63302.0,63301.0,0.27527774]
[1728779559623,0.0004,63302.0,63301.0,0.15797455]
[1728779560322,0.0004,63302.0,63301.0,0.25252853]
[1728779560523,0.0004,63302.0,63301.0,0.2604333]
[1728779560721,0.0004,63302.0,63301.0,0.084399]
[1728779561120,0.0004,63302.0,63301.0,0.085399]
[1728779562323,0.0004,63302.0,63301.0,0.11438598]
[1728779565331,0.0004,63302.0,63301.0,0.11338598]
[1728779565723,0.0004,63302.0,63301.0,0.11238598]
[1728779566622,0.0004,63302.0,63301.0,0.10838598]
[1728779566823,0.0004,63302.0,63301.0,0.11338598]
[1728779567430,0.0004,63302.0,63301.0,0.11438598]
[1728779568230,0.0004,63302.0,63301.0,0.28763476]
[1728779568422,0.0004,63302.0,63301.0,0.28766551]
[1728779568823,0.0004,63302.0,63301.0,0.20908996]
[1728779569627,0.0004,63302.0,63301.0,0.20408996]
[1728779569829,0.0004,63302.0,63301.0,0.20908996]
[1728779570233,0.0004,63302.0,63301.0,0.20808996]
[1728779570431,0.0004,63302.0,63301.0,0.20308996]
[1728779570627,0.0004,63302.0,63301.0,0.20608996]
[1728779572422,0.0004,63302.0,63301.0,0.30053714]
[1728779573424,0.0004,63302.0,63301.0,0.20608996]
[1728779573831,0.0004,63302.0,63301.0,0.30060107]
[1728779574337,0.0004,63302.0,63301.0,0.30075574]
[1728779575937,0.0004,63302.0,63301.0,0.20624463]
[1728779576138,0.0004,63302.0,63301.0,0.11138598]
[1728779578041,0.1004,63302.0,63301.0,0.11138598]
[1728779580741,0.1004,63302.0,63301.0,0.0034]
[1728779583153,0.1004,63302.0,63301.0,0.19294221]
[1728779583546,0.1004,63302.0,63301.0,0.09842413]
[1728779583845,0.1004,63302.0,63301.0,0.19299131]
[1728779586245,0.1004,63302.0,63301.0,0.09842413]
[1728779586442,0.1004,63302.0,63301.0,0.19299444]
[1728779587148,0.1004,63302.0,63301.0,0.09842413]
[1728779587352,0.1004,63302.0,63301.0,0.09843073]
[1728779588349,0.1004,63302.0,63301.0,0.19297374]
[1728779588557,0.179398,63302.0,63301.0,0.09843073]
[1728779589862,0.179398,63302.0,63301.0,0.0034]
[1728779590359,1.253318,63302.0,63301.0,0.09854989]
[1728779590551,1.353318,63302.0,63301.0,0.09854989]
[1728779590750,1.353318,63302.0,63297.0,0.0004]
[1728779590751,0.879398,63302.0,63297.0,0.0004]
[1728779590949,0.07901,63292.0,63291.0,0.20651574]
[1728779591254,0.53981,63292.0,63291.0,0.20651574]
[1728779592958,0.53981,63292.0,63291.0,0.21951574]
[1728779593159,0.53981,63292.0,63291.0,0.22851574]
[1728779593461,0.079017,63287.0,63286.0,0.12837231]
[1728779593662,0.179017,63287.0,63286.0,0.12837231]
[1728779594761,0.179017,63287.0,63286.0,0.13537231]
[1728779595550,0.179017,63287.0,63286.0,0.14537231]
[1728779595760,0.180017,63287.0,63286.0,0.14537231]
[1728779596958,0.540817,63287.0,63286.0,0.14537231]
[1728779597962,0.540817,63287.0,63286.0,0.01936954]
[1728779599359,0.56916917,63287.0,63286.0,0.01936954]
[1728779599761,0.56916917,63287.0,63286.0,0.00536954]
[1728779599762,0.56816917,63287.0,63286.0,0.00536954]
[1728779600063,0.56916917,63287.0,63286.0,0.003]
[1728779603159,0.60696917,63287.0,63286.0,0.003]
[1728779616369,0.60696917,63287.0,63286.0,0.05019788]
[1728779617575,0.60696917,63287.0,63286.0,0.003]
[1728779621177,0.60696917,63287.0,63286.0,0.08166314]
[1728779621385,0.60696917,63287.0,63286.0,0.003]
[1728779621784,0.60696917,63287.0,63286.0,0.08166314]
[1728779623688,0.60696917,63287.0,63286.0,0.17533562]
[1728779623979,0.60696917,63287.0,63286.0,0.08166314]
[1728779624279,0.60696917,63287.0,63286.0,0.17534043]
[1728779624784,0.60696917,63287.0,63286.0,0.08166314]
[1728779625083,0.60696917,63287.0,63286.0,0.17537955]
[1728779625288,0.60696917,63287.0,63286.0,0.08166314]
[1728779625670,0.60696917,63287.0,63286.0,0.003]
[1728779626193,0.60696917,63287.0,63286.0,0.17537195]
[1728779626575,0.60696917,63287.0,63286.0,0.08166314]
[1728779627273,0.60696917,63287.0,63286.0,0.003]
[1728779642076,0.440817,63287.0,63286.0,0.003]
[1728779642282,0.440817,63287.0,63286.0,0.09663599]
[1728779645289,0.440817,63287.0,63286.0,0.0964586]
[1728779646293,0.540817,63287.0,63286.0,0.0964586]
[1728779647790,0.540817,63287.0,63286.0,0.08189001]
[1728779647997,0.540817,63287.0,63286.0,0.003]
[1728779648586,0.540817,63287.0,63286.0,0.08189001]
[1728779648988,0.540817,63287.0,63286.0,0.003]
[1728779651400,0.440817,63287.0,63286.0,0.09649702]
[1728779651598,0.540817,63287.0,63286.0,0.09649702]
[1728779654698,0.540817,63287.0,63286.0,0.09648607]
[1728779655293,0.540817,63287.0,63286.0,0.17538507]
[1728779655998,0.540817,63287.0,63286.0,0.17540525]
[1728779656197,0.540817,63287.0,63286.0,0.09650625]
[1728779656397,0.540817,63287.0,63286.0,0.17540405]
[1728779656899,0.540817,63287.0,63286.0,0.09650625]
[1728779659489,0.001,63287.0,63286.0,0.27552425]
[1728779659796,0.001,63287.0,63286.0,0.27542506]
[1728779660511,0.3612,63298.0,63286.0,1.29317888]
[1728779660695,0.1,63295.0,63293.0,0.07885959]
[1728779660896,0.179007,63295.0,63292.0,0.07885959]
[1728779662199,0.184007,63295.0,63292.0,0.001]
[1728779663102,0.187007,63295.0,63292.0,0.001]
[1728779663795,0.187007,63295.0,63292.0,0.0288176]
[1728779665296,0.547807,63295.0,63292.0,0.0288176]
[1728779667809,0.187007,63295.0,63292.0,0.0288176]
[1728779668307,0.547807,63295.0,63292.0,0.0288176]
[1728779669511,0.079009,63293.0,63292.0,0.0288176]
[1728779670808,0.082009,63293.0,63292.0,0.0288176]
[1728779671316,0.182009,63293.0,63292.0,0.001]
[1728779671523,0.187009,63293.0,63292.0,0.001]
[1728779678217,0.187009,63293.0,63292.0,0.06406202]
[1728779678725,0.187009,63293.0,63292.0,0.001]
[1728779679108,0.087009,63293.0,63292.0,0.001]
[1728779679308,0.187009,63293.0,63292.0,0.001]
[1728779679517,0.187009,63293.0,63292.0,0.06406202]
[1728779680307,0.187009,63293.0,63292.0,0.001]
[1728779680813,0.187009,63293.0,63292.0,0.06406202]
[1728779681211,0.29655355,63293.0,63292.0,0.001]
[1728779681616,0.42290544,63293.0,63292.0,0.001]
[1728779683717,0.42292702,63293.0,63292.0,0.001]
[1728779688020,0.29657513,63293.0,63292.0,0.001]
[1728779688220,0.42292702,63293.0,63292.0,0.001]
[1728779689118,0.187009,63293.0,63292.0,0.001]
[1728779695826,0.547809,63293.0,63292.0,0.001]
[1728779696934,0.547809,63293.0,63292.0,0.06410594]
[1728779700027,0.908609,63293.0,63292.0,0.06410594]
[1728779701231,0.908609,63293.0,63292.0,0.001]
[1728779704230,1.08520208,63293.0,63292.0,0.001]
[1728779706129,1.08513635,63293.0,63292.0,0.001]
[1728779707224,0.36353635,63293.0,63292.0,0.001]
[1728779707429,0.72433635,63293.0,63292.0,0.001]
[1728779708840,0.36353635,63293.0,63292.0,0.001]
[1728779709340,0.72433635,63293.0,63292.0,0.001]
[1728779709835,0.36353635,63293.0,63292.0,0.001]
[1728779710036,0.72433635,63293.0,63292.0,0.001]
[1728779710950,0.72441834,63293.0,63292.0,0.001]
[1728779711262,0.079023,63282.0,63281.0,0.07885959]
[1728779711556,0.079024,63281.0,63275.0,0.07885959]
[1728779711736,0.079024,63281.0,63271.0,0.07885959]
[1728779711737,0.5608,63276.0,63271.0,0.07885959]
[1728779712039,0.1,63273.0,63271.0,0.07885959]
[1728779712238,0.079037,63271.0,63270.0,0.07885959]
[1728779712441,0.079037,63271.0,63270.0,0.17217557]
[1728779712744,0.1,63273.0,63269.0,0.07885959]
[1728779712745,0.079038,63270.0,63269.0,0.07885959]
[1728779712935,0.179038,63270.0,63269.0,0.17212448]
[1728779713541,0.179038,63270.0,63268.0,0.07885959]
[1728779713941,0.165038,63270.0,63268.0,0.07885959]
[1728779714445,0.165038,63270.0,63269.0,0.014]
[1728779714446,0.157038,63270.0,63269.0,0.014]
[1728779716039,0.158038,63270.0,63268.0,0.002]
[1728779716544,0.158038,63270.0,63269.0,0.002]
[1728779717048,0.157038,63270.0,63266.0,0.07885959]
[1728779717231,0.158038,63270.0,63268.0,0.002]
[1728779717433,0.1,63269.0,63268.0,0.002]
[1728779718846,0.098,63269.0,63264.0,0.07885959]
[1728779719143,0.098,63269.0,63263.0,0.044]
[1728779719144,0.099,63269.0,63263.0,0.044]
[1728779719349,0.1,63269.0,63268.0,0.002]
[1728779719935,0.1,63269.0,63264.0,0.002]
[1728779720140,0.1,63269.0,63265.0,0.01285273]
[1728779720442,0.1,63269.0,63264.0,0.002]
[1728779720648,0.1,63269.0,63265.0,0.01285261]
[1728779720849,0.1,63269.0,63263.0,0.044]
[1728779721147,0.1,63269.0,63264.0,0.01285264]
[1728779721349,0.1,63269.0,63263.0,0.044]
[1728779721350,0.1,63269.0,63265.0,0.01285264]
[1728779721646,0.1,63269.0,63263.0,0.044]
[1728779721950,0.1,63269.0,63264.0,0.01285261]
[1728779722140,0.1,63269.0,63263.0,0.044]
[1728779722141,0.098,63269.0,63263.0,0.044]
[1728779722340,0.1,63269.0,63264.0,0.01285261]
[1728779722639,0.1,63269.0,63263.0,0.044]
[1728779722953,0.099,63269.0,63264.0,0.01285261]
[1728779723152,0.1,63269.0,63263.0,0.044]
[1728779723346,0.001,63269.0,63267.0,0.1]
[1728779723748,0.056038,63270.0,63267.0,0.1]
[1728779724053,0.001,63269.0,63267.0,0.1]
[1728779725250,0.056038,63270.0,63267.0,0.1]
[1728779725450,0.002,63269.0,63267.0,0.1]
[1728779734067,0.002,63269.0,63266.0,0.07885959]
[1728779734361,0.002,63269.0,63265.0,0.079044]
[1728779735769,0.056038,63270.0,63265.0,0.079044]
[1728779736071,0.056038,63270.0,63269.0,0.0004]
[1728779738279,0.061038,63270.0,63269.0,0.0004]
[1728779741275,0.061038,63270.0,63269.0,0.0939105]
[1728779745578,0.061038,63270.0,63269.0,0.12267553]
[1728779747078,0.061038,63270.0,63269.0,0.0939105]
[1728779748986,0.061038,63270.0,63269.0,0.09392636]
[1728779749471,0.11182716,63270.0,63269.0,0.0004]
[1728779749983,0.47262716,63270.0,63269.0,0.0004]
[1728779755888,0.11182716,63270.0,63269.0,0.0004]
[1728779756094,0.47262716,63270.0,63269.0,0.0004]
[1728779756593,0.47262716,63270.0,63269.0,0.09386282]
[1728779756594,0.421838,63270.0,63269.0,0.09386282]
[1728779758294,0.061038,63270.0,63269.0,0.09386282]
[1728779758495,0.421838,63270.0,63269.0,0.09387448]
[1728779762196,0.061038,63270.0,63269.0,0.09387448]
[1728779762395,0.421838,63270.0,63269.0,0.09387448]
[1728779763587,0.509238,63270.0,63269.0,0.09387448]
[1728779764499,0.509238,63270.0,63261.0,0.00207776]
[1728779764500,0.509238,63270.0,63265.0,0.0789727]
[1728779764809,0.1,63265.0,63262.0,0.0789727]
[1728779765002,0.639846,63263.0,63262.0,0.0789727]
[1728779765394,0.639846,63263.0,63260.0,0.0789727]
[1728779765588,0.639846,63263.0,63258.0,0.079053]
[1728779765589,0.1,63261.0,63259.0,0.0789727]
[1728779765797,0.1,63261.0,63258.0,0.1580257]
[1728779765998,0.0435,63260.0,63258.0,0.1580257]
[1728779766409,0.0463,63259.0,63252.0,0.0789727]
[1728779766600,0.3608,63253.0,63250.0,0.0789727]
[1728779766790,0.3608,63253.0,63249.0,0.1580367]
[1728779766791,0.1,63251.0,63249.0,0.1580367]
[1728779766989,0.1,63251.0,63250.0,0.1731522]
[1728779767399,0.1,63251.0,63249.0,0.079064]
[1728779767999,0.1,63251.0,63248.0,0.0789727]
[1728779768194,0.1,63251.0,63250.0,0.079063]
[1728779768195,0.101,63251.0,63250.0,0.079063]
[1728779769394,0.1,63251.0,63250.0,0.079063]
[1728779769696,0.001,63251.0,63250.0,0.079063]
[1728779770217,0.002,63251.0,63250.0,0.079063]
[1728779771104,0.002,63251.0,63250.0,0.179063]
[1728779771621,0.439839,63269.0,63264.0,0.079045]
[1728779771800,0.441799,63269.0,63266.0,0.1004]
[1728779772005,0.439839,63269.0,63268.0,0.0004]
[1728779772911,0.539839,63269.0,63268.0,0.0004]
[1728779774208,0.542839,63269.0,63268.0,0.0004]
[1728779774708,0.548839,63269.0,63268.0,0.0004]
[1728779777911,0.188039,63269.0,63268.0,0.0004]
[1728779780611,0.009,63269.0,63265.0,0.1]
[1728779780816,0.009,63269.0,63261.0,0.1]
[1728779780817,0.53984,63268.0,63261.0,0.1]
[1728779781112,0.53984,63268.0,63264.0,0.079045]
[1728779782715,0.079042,63267.0,63264.0,0.079045]
[1728779784512,0.1,63265.0,63259.0,0.14204414]
[1728779784719,0.002,63267.0,63257.0,0.06299314]
[1728779784720,0.1,63262.0,63257.0,0.06299314]
[1728779784910,0.1,63258.0,63256.0,0.06299314]
[1728779785216,0.1,63257.0,63255.0,0.06299314]
[1728779785514,0.1,63257.0,63256.0,0.06299314]
[1728779787215,0.1,63257.0,63256.0,0.06399314]
[1728779787819,0.101,63257.0,63256.0,0.06399314]
[1728779788007,0.002,63257.0,63256.0,0.06399314]
[1728779788715,0.002,63257.0,63256.0,0.001]
[1728779788910,0.002,63257.0,63256.0,0.0640429]
[1728779789618,0.002,63257.0,63256.0,0.001]
[1728779789807,0.002,63257.0,63256.0,0.180055]
[1728779790519,0.002,63257.0,63256.0,0.280055]
[1728779790715,0.002,63257.0,63256.0,0.452437]
[1728779791016,0.002,63257.0,63256.0,0.27369557]
[1728779791828,0.0438,63272.0,63256.0,1.46078992]
[1728779792115,0.0438,63272.0,63271.0,0.1004]
[1728779793321,0.079027,63279.0,63274.0,0.079032]
[1728779793514,0.05080588,63278.0,63276.0,0.1]
[1728779793819,0.079027,63279.0,63276.0,0.1]
[1728779794319,0.079027,63279.0,63278.0,0.0004]
[1728779794507,0.088027,63279.0,63278.0,0.0004]
[1728779795329,0.104027,63279.0,63278.0,0.0004]
[1728779795819,0.025,63279.0,63278.0,0.0004]
[1728779796129,0.025,63279.0,63278.0,0.3612]
[1728779796924,0.027,63279.0,63278.0,0.440228]
[1728779798428,0.027,63279.0,63278.0,0.590228]
[1728779800130,0.027,63279.0,63278.0,0.440228]
[1728779800328,0.027,63279.0,63278.0,0.590228]
[1728779804036,0.027,63279.0,63278.0,0.3612]
[1728779804627,0.027,63279.0,63278.0,0.440228]
[1728779807429,0.027,63279.0,63278.0,0.590228]
[1728779808438,0.20524449,63279.0,63278.0,0.51114874]
[1728779808622,0.20524449,63279.0,63278.0,0.21064931]
[1728779815224,0.20524449,63279.0,63274.0,0.15]
[1728779815419,0.33729065,63278.0,63274.0,0.229033]
[1728779815626,0.25826265,63277.0,63274.0,0.229033]
[1728779815824,0.25826265,63276.0,63274.0,0.229033]
[1728779816029,0.25826265,63275.0,63274.0,0.229033]
[1728779816224,0.17824449,63275.0,63274.0,0.229033]
[1728779816735,0.023,63279.0,63274.0,0.229033]